Cogmind - Beta 14 @@@ ROGUE MODE // 2024.08.12 @ 11:39:19 Player: ldi (hl). (hl) Result: Destroyed by H-55 Commando with Gauss Rifle Performance ------------- Evolutions (2) 1000 Regions Visited (4) 800 Robots Destroyed (30) 150 Value Destroyed (839) 839 Prototype IDs (2) 40 Alien Tech Used (0) 0 Bonus (22) 22 TOTAL SCORE: 2851 Bonus ------- High Alert Combat Kills 22 Cogmind --------- Core Integrity 0/550 Matter 300/300 Energy 100/100 System Corruption 0% Temperature Cool (0) Movement Core (50) Location -8/Materials Parts ------- > --- POWER (1) -------- (None) > --- PROPULSION (4) --- (None) > --- UTILITY (4) ------ Visual Processing Unit > --- WEAPON (2) ------- (None) > --- INVENTORY (5) ---- Medium Storage Unit Light Armor Plating Light Armor Plating Beam Cannon Beam Cannon Peak State ------------ > --- POWER ------------ Light Nuclear Core > --- PROPULSION ------- Aluminum Leg Aluminum Leg Aluminum Leg > --- UTILITY ---------- Large Storage Unit Utility Shielding Light Armor Plating > --- WEAPON ----------- Medium Laser Advanced Beam Cannon > --- INVENTORY -------- Ion Engine Light Armor Plating Light Armor Plating Light Armor Plating Light Armor Plating Beam Cannon [Rating: 13] Favorites ----------- Power Light Ion Engine Engine Light Ion Engine Power Core Light Nuclear Core Propulsion Aluminum Leg Leg Aluminum Leg Utility Large Storage Unit Storage Large Storage Unit Processor Visual Processing Unit Protection Utility Shielding Weapon Medium Laser Energy Gun Medium Laser Energy Cannon Beam Cannon Ballistic Gun Assault Rifle Launcher Advanced EMP Blaster Impact Weapon Heavy Mace Build | -11 -10 -10 -9 -8 ------- Run | Yrd Mat Min Mat Mat Slots Evolved 4 | . . . 2 2 Power . | . . . . . Propulsion 2 | . . . 1 1 Utility 2 | . . . 1 1 Weapon . | . . . . . Parts Attached 27 | 6 5 3 4 9 Power 4 | 1 . 1 . 2 Engine 2 | 1 . . . 1 Core 2 | . . 1 . 1 Reactor . | . . . . . Propulsion 9 | 2 2 2 1 2 Treads . | . . . . . Leg 9 | 2 2 2 1 2 Wheel . | . . . . . Hover . | . . . . . Flight . | . . . . . Utility 6 | 1 2 . 2 1 Device . | . . . . . Storage 2 | 1 1 . . . Processor 1 | . . . 1 . Hackware . | . . . . . Protection 3 | . 1 . 1 1 Artifact . | . . . . . Weapon 8 | 2 1 . 1 4 Energy Gun 3 | 1 1 . . 1 Energy Cannon 2 | . . . 1 1 Ballistic Gun 1 | 1 . . . . Ballistic Cannon . | . . . . . Launcher 1 | . . . . 1 Special Weapon . | . . . . . Impact Weapon 1 | . . . . 1 Slashing Weapon . | . . . . . Piercing Weapon . | . . . . . Special Melee Weapon . | . . . . . Unidentified Prototypes 2 | . . . 1 1 Parts Lost 11 | . . . 3 8 Power 3 | . . . 1 2 Propulsion 2 | . . . . 2 Utility 2 | . . . 1 1 Weapon 4 | . . . 1 3 Highest Loss Streak 3 | . . . 3 3 To Critical Strikes . | . . . . . Average Slot Usage (%) 77 | . 97 100 62 34 Engine 7 | . 14 3 . 2 Core 2 | . . 10 7 1 Leg 21 | . 28 28 19 5 Storage 9 | . 13 14 7 . Processor 2 | . . . 3 9 Protection 9 | . 11 14 11 1 Energy Gun 10 | . 14 14 6 4 Energy Cannon 1 | . . . 4 2 Ballistic Gun 8 | . 14 14 2 . Impact Weapon 1 | . . . . 6 Peak Build Rating 13 | 6 7 10 13 13 Average Rating 7 | 4 6 8 8 8 On Entrance 4 | . 6 7 9 2 Naked Turns 6 | . . . 6 . Heaviest Build 35 | 12 28 30 35 14 Greatest Support 30 | 20 20 20 30 13 Greatest Overweight (x) 3 | . 2 1 1 3 Average Overweight (x) . | . . 1 . . Largest Inventory Capacity 15 | 8 15 15 15 5 Average Capacity 11 | 6 14 15 11 5 Most Carried 10 | 1 7 10 9 5 Average Carried 3 | . 1 7 6 4 Final Capacity 15 | 8 15 15 5 5 Final Carried 8 | 1 7 8 5 5 Class Distribution -------------------- 95% | Mutant 4% | Scavenger-Mutant Dominant Class ---------------- Mutant | -10/Materials Mutant | -10/Mines Mutant | -9/Materials Mutant | -8/Materials Resources | -11 -10 -10 -9 -8 ----------- Run | Yrd Mat Min Mat Mat Matter Collected 555 | 212 183 66 . 94 Remotely . | . . . . . Salvage Created 1083 | . 256 136 35 656 Parts 42 | . 11 14 . 17 Haulers Intercepted 1 | . . . . 1 Recyclers Shooed 1 | . 1 . . . Parts Field Recycled . | . . . . . Retrieved Matter . | . . . . . Parts Self-Destructed . | . . . . . Prevented . | . . . . . Kills | -11 -10 -10 -9 -8 ------- Run | Yrd Mat Min Mat Mat Combat Hostiles Destroyed 22 | . 5 5 1 11 Melee 5 | . . . . 5 Guns 10 | . 4 5 . 1 Cannons 2 | . . . 1 1 Classes Destroyed 8 | . 4 . . 4 Worker 4 | . 3 1 . . Hauler 1 | . . . . 1 Recycler 2 | . 1 . . 1 Watcher 1 | . . . . 1 Swarmer 6 | . 3 3 . . Grunt 14 | . 2 2 1 9 Sentry 1 | . . . . 1 Hunter 1 | . . . . 1 Best Kill Streak 5 | . 3 3 1 5 Combat Bots Only 3 | . 3 3 1 3 Max Kills in Single Turn 2 | . 1 2 1 1 Gunslinging 1 | . . 1 . . Exploded . | . . . . . Melee 1 | . . . . 1 Uniques/NPCs Destroyed . | . . . . . Combat | -11 -10 -10 -9 -8 -------- Run | Yrd Mat Min Mat Mat Hostile Shots Fired 226 | . 31 18 71 106 Missed 52 | . 8 4 21 19 Damage Taken 2280 | . 210 156 577 1337 Core 861 | . 38 49 203 571 Absorbed by Shields . | . . . . . Redirected to Shielding 14 | . 5 . 9 . Core Remaining (%) 71 | 100 . 65 49 . Volleys Fired 58 | . 30 11 7 10 Largest 2 | . 2 2 2 2 Hottest 123 | . 70 70 118 123 Shots Fired 114 | . 60 22 13 19 Gun 97 | . 60 22 6 9 Cannon 16 | . . . 7 9 Launcher 1 | . . . . 1 Special . | . . . . . Kinetic 41 | . 30 11 . . Thermal 72 | . 30 11 13 18 Explosive . | . . . . . Electromagnetic 1 | . . . . 1 Robot Hit Streak 8 | . 8 2 5 4 Robot Miss Streak 4 | . 4 3 2 3 Penetration Max . | . . . . . Secondary Targets 1 | . . 1 . . Max Gunslinging Chain 1 | . . 1 . . Shots Hit Robots 99 | . 38 8 9 44 Core Hits 32 | . 10 9 2 11 Critical Kills 2 | . . . . 2 Critical Parts Destroyed 4 | . . . . 4 Critical Strikes 10 | . . 2 . 8 Burn 3 | . . 2 . 1 Smash 7 | . . . . 7 Melee Attacks 47 | . . . . 47 Impact 47 | . . . . 47 Slashing . | . . . . . Piercing . | . . . . . Sneak Attacks 1 | . . . . 1 Combat Hostiles . | . . . . . Follow-up Attacks . | . . . . . Damage Inflicted 2471 | . 508 123 230 1610 Guns 782 | . 508 123 51 100 Cannons 156 | . . . 103 53 Explosions 181 | . . . 76 105 Melee 1344 | . . . . 1344 Ramming 8 | . . . . 8 Kinetic 291 | . 233 58 . . Thermal 647 | . 275 65 154 153 Explosive 76 | . . . 76 . Electromagnetic 105 | . . . . 105 Impact 1344 | . . . . 1344 Slashing . | . . . . . Piercing . | . . . . . Highest Corruption . | . . . . . Average Corruption . | . . . . . Corruption Purged . | . . . . . Corruption Blocked . | . . . . . Overload Shots . | . . . . . Overflow Damage 207 | . . . . 207 Projectiles 5 | . . . . 5 Explosions . | . . . . . Melee 202 | . . . . 202 Knockbacks 4 | . . . . 4 Impact 3 | . . . . 3 Kinetic . | . . . . . Secondary 1 | . . . . 1 Self-Inflicted Damage 3 | . . . . 3 Shots . | . . . . . Rammed 2 | . . . . 2 Targets Rammed 8 | . 1 . 1 6 Kicked 6 | . 1 . 1 4 Crushed . | . . . . . Highest Temperature 420 | . 108 81 420 324 Average Temperature 105 | . 38 32 218 177 Received Heat Transfer 924 | . 54 60 297 513 Effects 4 | . . . 2 2 Shutdowns 1 | . . . 1 . Interference 2 | . . . . 2 Short Circuit 1 | . . . 1 . Siege Activations . | . . . . . Robots Corrupted 6 | . . . . 6 Combat Hostiles 4 | . . . . 4 Parts Fried 7 | . . . . 7 Impact Corruptions 11 | . . . . 11 Robots Melted 1 | . 1 . . . Combat Hostiles 1 | . 1 . . . Parts Melted 3 | . 2 1 . . Heat Transferred 1887 | . 814 333 333 407 Parts Sabotaged . | . . . . . Parts Stolen . | . . . . . Parts Stripped . | . . . . . Power Chain Reactions . | . . . . . Alert | -11 -10 -10 -9 -8 ------- Run | Yrd Mat Min Mat Mat Peak Influence 445 | . 162 145 194 445 Initial 81 | . . 5 56 81 Average 99 | . 40 78 83 251 Maximum Alert Level 2 | . . . . 2 Low Security (%) 84 | 100 100 100 100 33 Level 1 12 | . . . . 53 Level 2 3 | . . . . 12 Level 3 . | . . . . . Level 4 . | . . . . . Level 5 . | . . . . . High Security . | . . . . . Max Security . | . . . . . Squads Dispatched 6 | . 1 . 2 3 Investigation 2 | . . . 1 1 Extermination . | . . . . . Reinforcement 4 | . 1 . 1 2 Assault . | . . . . . Garrison . | . . . . . Intercept . | . . . . . Searches Triggered . | . . . . . Construction Impeded 1 | . . . . 1 Haulers Reinforced . | . . . . . Active Scanning Responses . | . . . . . Cargo Convoy Interrupts . | . . . . . Stealth | -11 -10 -10 -9 -8 --------- Run | Yrd Mat Min Mat Mat Distress Signals 4 | . 3 . . 1 Communications Jammed . | . . . . . Distress Signals . | . . . . . Times Spotted 56 | . 13 5 15 23 Peak Tracking Total 10 | . 4 2 10 6 Tactical Retreats 4 | . . . . 4 Traps | -11 -10 -10 -9 -8 ------- Run | Yrd Mat Min Mat Mat Traps Triggered 2 | . 2 . . . Indirectly . | . . . . . Trap Hack Attempts . | . . . . . Triggered . | . . . . . Disarmed . | . . . . . Reprogrammed . | . . . . . Reused . | . . . . . Traps Extracted . | . . . . . Installed . | . . . . . Triggered . | . . . . . Objects Rigged 4 | . . . 4 . Exploded 1 | . . . 1 . Machines | -11 -10 -10 -9 -8 ---------- Run | Yrd Mat Min Mat Mat Machines Disabled 3 | . . . 3 . Max in Single Turn 2 | . . . 2 . Machines Repaired . | . . . . . Machines Dismantled . | . . . . . Machines Sabotaged . | . . . . . Overloaded Fab Kills . | . . . . . Hacking | -11 -10 -10 -9 -8 --------- Run | Yrd Mat Min Mat Mat Machines Accessed 8 | . 4 . 2 2 Terminals 6 | . 4 . 2 . Fabricators . | . . . . . Repair Stations . | . . . . . Recycling Units 2 | . . . . 2 Scanalyzers . | . . . . . Garrison Access . | . . . . . Total Hacks 24 | . 10 . 9 5 Successful 9 | . 4 . 4 1 Failed 15 | . 6 . 5 4 Catastrophic 1 | . 1 . . . Database Lockouts . | . . . . . Manual 10 | . 2 . 8 . Terminals 19 | . 10 . 9 . Fabricators . | . . . . . Repair Stations . | . . . . . Recycling Units 5 | . . . . 5 Scanalyzers . | . . . . . Garrison Access . | . . . . . Terminal Hacks 5 | . 4 . 1 . Branch Access Points 1 | . 1 . . . Unreport Threat 1 | . 1 . . . Zone Layout 3 | . 2 . 1 . Fabricator Hacks . | . . . . . Repair Station Hacks . | . . . . . Recycling Unit Hacks 1 | . . . . 1 Retrieve Components 1 | . . . . 1 Scanalyzer . | . . . . . Garrison Access Hacks . | . . . . . Unauthorized Hacks 3 | . . . 3 . Terminals 3 | . . . 3 . Track 1 | . . . 1 . Detonate 1 | . . . 1 . Disrupt 1 | . . . 1 . Fabricators . | . . . . . Repair Stations . | . . . . . Recycling Units . | . . . . . Scanalyzers . | . . . . . Garrison Access . | . . . . . Data Cores Recovered . | . . . . . Used . | . . . . . Hacking Detections 4 | . 1 . 2 1 Full Trace Events 3 | . 1 . 1 1 Feedback Events . | . . . . . Feedback Blocked . | . . . . . Robot Schematics Acquired . | . . . . . Robots Built . | . . . . . Authchips . | . . . . . Time . | . . . . . Total Robot Build Rating . | . . . . . Part Schematics Acquired . | . . . . . Parts Built . | . . . . . Authchips . | . . . . . Time . | . . . . . Total Part Build Rating . | . . . . . Parts Repaired . | . . . . . Time . | . . . . . Parts Recycled . | . . . . . Recycled Matter . | . . . . . Retrieved Matter . | . . . . . Retrieved Components 1 | . . . . 1 Parts Scanalyzed . | . . . . . Part Schematics Acquired . | . . . . . Parts Damaged . | . . . . . Bothacking | -11 -10 -10 -9 -8 ------------ Run | Yrd Mat Min Mat Mat Used RIF Installer . | . . . . . Robots Hacked . | . . . . . Non-combat . | . . . . . Combat . | . . . . . Robot Hacks Applied . | . . . . . Relay Couplers Released . | . . . . . Fabnet Peak Effective % . | . . . . . Robots Rewired . | . . . . . Allies Hacked . | . . . . . Hacks Repelled . | . . . . . Allies | -11 -10 -10 -9 -8 -------- Run | Yrd Mat Min Mat Mat Total Allies . | . . . . . Largest Group . | . . . . . Highest-Rated Group . | . . . . . Highest-Rated Ally . | . . . . . Total Orders . | . . . . . Ally Attacks . | . . . . . Total Damage . | . . . . . Kills . | . . . . . Allies Corrupted . | . . . . . Allies Melted . | . . . . . Intel | -11 -10 -10 -9 -8 ------- Run | Yrd Mat Min Mat Mat Robot Analysis Total . | . . . . . Derelict Logs Recovered . | . . . . . Drone Launches . | . . . . . Drone Recoveries . | . . . . . Exploration | -11 -10 -10 -9 -8 ------------- Run | Yrd Mat Min Mat Mat Turns Passed 1331 | 66 622 162 162 319 Spaces Moved 633 | 51 276 64 141 101 Core 156 | 6 . . 98 52 Treads . | . . . . . Legs 477 | 45 276 64 43 49 Wheels . | . . . . . Hover . | . . . . . Flight . | . . . . . Fastest Speed 50 | 50 120 190 50 50 Average Speed 149 | 111 187 190 89 119 Slowest Speed 260 | 120 260 190 190 200 Overloaded Moves . | . . . . . Propulsion Burnouts . | . . . . . Robots Hopped . | . . . . . Cave-ins Triggered . | . . . . . Exploration Rate (%) 19 | 3 50 14 21 11 Regions Visited 4 Branch Regions 1 Pre-discovered Areas . | . . . . . Known Exits Taken 1 | . 1 . . . Unknown Exits Taken 3 | 1 . 1 1 . Scrap Searched . | . . . . . Spaces Dug . | . . . . . Terrain Destroyed 57 | . . . 57 . Melee . | . . . . . Projectile . | . . . . . AOE 57 | . . . 57 . Terrain Rammed . | . . . . . Walls Destroyed . | . . . . . Machines Disabled . | . . . . . Actions | -11 -10 -10 -9 -8 --------- Run | Yrd Mat Min Mat Mat Total 811 | 57 319 83 162 190 Wait 23 | . . . 8 15 Move 629 | 50 275 63 140 101 Hop . | . . . . . Pick Up 11 | 1 6 2 . 2 Fast Attach 19 | 6 5 . 2 6 Attach 4 | . . . 2 2 Detach 2 | . 1 . 1 . Swap 4 | . . 3 . 1 Drop 6 | . 1 4 1 . Fire 58 | . 30 11 7 10 Melee 47 | . . . . 47 Ram 2 | . . . . 2 Kick 6 | . 1 . 1 4 Crush . | . . . . . Escape Stasis . | . . . . . Rewire . | . . . . . Trap . | . . . . . Miscellaneous . | . . . . . Route ------- -11/Scrapyard -10/Materials (discovered 3 exits: Mat / *Min x2) -10/Mines -9/Materials (discovered 2 exits: *Mat / [*Min]) -8/Materials History --------- Turn | Location | Event 5 | -11/Scrapyard | Discovered new exit (range 15) 67 | -11/Scrapyard | Entered Materials 104 | -10/Materials | Identified exit to Mines 310 | -10/Materials | Build established: Mutant 418 | -10/Materials | Discovered new exit (range 17) 689 | -10/Materials | Entered Mines 820 | -10/Mines | Discovered new exit (range 10) 851 | -10/Mines | Entered Materials 851 | -9/Materials | Evolved 2 slots: Propulsion x1, Utility x1 963 | -9/Materials | Released all parts (6) 987 | -9/Materials | Discovered new exit (range 18) 991 | -9/Materials | Lost 3 parts (1p1u1w) 1007 | -9/Materials | Core integrity fell below 50% 1010 | -9/Materials | Discovered new exit (range 8) 1013 | -9/Materials | Entered another Materials area 1013 | -8/Materials | Evolved 2 slots: Propulsion x1, Utility x1 1279 | -8/Materials | Core integrity fell below 50% 1306 | -8/Materials | Core integrity fell below 20% 1332 | -8/Materials | Destroyed by H-55 Commando with Gauss Rifle Last Messages --------------- 01265_ G-47 Trooper suffers critical hit (Smash). 01265_ G-47 Trooper destroyed. 01271_ G-47 Trooper suffers critical hit (Smash). 01271_ G-47 Trooper destroyed. 01284_ Aluminum Leg destroyed. 01293_ Adv. EMP Blaster destroyed. 01308_ Critical hit (Burn: +37). 01309_ Y-45 Defender suffers critical hit (Smash). 01312_ Destroyed Lgt. Treads. 01312_ Destroyed Lgt. Armor Plating. 01312_ Y-45 Defender system corrupted by crushing effect. 01313_ Y-45 Defender system terminally corrupted. 01313_ Imp. Ion Engine fried. 01313_ Heat Sink fried. 01321_ Hvy. Mace destroyed. 01323_ Slammed into Y-45 Defender. 01323_ Penetrated by Slug. 01323_ K-01 Serf destroyed. 01324_ Slammed into H-55 Commando. 01325_ U-05 Engineer builds a Door. Map ----- +----------------------------------------------------+ | ?????????????????????????????????????????????????? | | ?????????????????????????????????????????????????? | | ?????????????????????????????????????????????????? | | ?????????????????????????????????????????????????? | | ?????????????????????????????????????????????????? | | ?????????????????????????????????????????????????? | | ?????????????????????????????????????????????????? | | ?????????????????????????????????????????????????? | | ?????????????????????????????????????????????????? | | ?????????????????????????????????????????????????? | | ?????????????????????????????????????????????????? | | ?????????????????????????????????????????????????? | | ?????????????????????##########??????????????????? | | ?????????????????????# #??????????????????? | | ?????????????????????# ! """ #??????????????????? | | ?????????????????????# """ ##?????????????????? | | ?????????????????????# """ ??????????????????? | | ?????????????????????+ #??????????????????? | | ?????????????????????# !!! * #??????????????????? | | ?????????????????????# !!! ########???????????? | | ?????????????????????# !! = #! #???????????? | | ?????????????????????# # #???????????? | | ?????????????????????####+##+##""" #???????????? | | ????????????????????????# ##""" #???????????? | | ????????????????????????# ##"""=% #???????????? | | ????????????????????????#@ ## !!%[ #???????????? | | ???????????????????# #### #####/####????????#?? | | ???????????????????# Y=%%% #?????? #?? | | ???????????????????# #### h%!]* #????? #?? | | ????????????????????????# =%[=##### #?? | | ????????????????????????# %g! #?? | | ????????????????????????# ########+### #?? | | ????????????????????????# #????# # #?? | | ????????????????????????# #????# / + | | ????????????????????????#+#????# ######### ## | | ???????????????????????????????# """ #???????????? | | ???????????????????????????????# """ #???????????? | | ???????????????????????????????# """ #???????????? | | ???????????????????????????????# ######### ##? | | ???????????????????????????????# """ + % | | ???????????????????????????????# """ ### ########? | | ???????????????????????????????# """ #?# #???????? | | ???????????????????????????????# #?# #???????? | | ???????????????????????????????# #?#%#???????? | | ????????????????????????????######+##### ##????### | | ???????????????????????? ######[ | | ???????????????????????? %! %+ [ | | ???????????????????????????#######+############# | | ???????????????????????????????????????????????# | | ???????????????????????????????????????????????# | +----------------------------------------------------+ Best States ------------- Heat Dissipation 31 Energy Generation 14 Energy Capacity 250 Matter Stores 300 Matter Capacity 300 Sight Range 18 Terrain Scan Density 10 Armor Coverage 150 Utility Shielding 33 Evasion (%) 55 Item Schematics ----------------- None Robot Schematics ------------------ None Fabricated ------------ Nothing Alien Tech Used ----------------- None Achievements -------------- None Challenges ------------ None Game ------ Seed MetafiberDrainedSlayer Manual? 0 Play Time 00:10:41 Cumulative 629.4 hours Start 2024.08.12 @ 11:14:26 End 2024.08.12 @ 11:39:19 Sessions 3 Manual Loads 0 Difficulty Rogue Special Mode None Game No. 404 Rogue 404 Adventurer 0 Explorer 0 Win Type - Total 38 Types 25/1/6/6/0/0/0/0/0 Lore% 62 Gallery% 79 Achievement% 78 Wizard Run 0 Options --------- Layout 0 ASCII 1 Keyboard 1 Movement Numpad Keybinds 0 Fullscreen 1 Font 36/SmallcapsGlow++ Map View 76x50 Zoom Use 0% Tactical HUD 1 Map Filters NONE Filters NONE Steam 1 RUN: 5af9849a-f519-44d8-8a8a-50054eef9d88